lending/lending_fUSD_20240131
["ID","MTS","AMOUNT","RATE_DAILY","PERIOD"]
[313041006,1706675443477,-405.99462355,0.0003726,2]
[313041008,1706675443489,-538.46537645,0.0003726,2]
[313041010,1706675443499,-62.85208755,0.0003726,2]
[313041023,1706675446147,-944.46,0.00036301,2]
[313041024,1706675446157,-403.07,0.00036301,2]
[313041025,1706675446167,-340.21791245,0.0003726,2]
[313041026,1706675446178,-170.41359516,0.0003726,2]
[313041027,1706675446190,-232.65640484,0.0003726,2]
[313041028,1706675446199,-193.77309362,0.0003726,2]
[313041029,1706675446368,-209.29690638,0.0003726,2]
[313041030,1706675446377,-944.46,0.00037341,2]
[313041031,1706675446387,-403.07,0.00037341,2]
[313041032,1706675446397,-403.07,0.00037341,2]
[313041033,1706675446406,-944.46,0.00037341,2]
[313041034,1706675446416,-269.8142868,0.00037416,2]
[313041035,1706675446429,-1024.53009209,0.00037416,2]
[313041036,1706675446438,-202.58121259,0.000375,2]
[313041037,1706675446448,-185.52464999,0.00037596,2]
[313041043,1706676106712,150.0,0.00023,10]
[313041058,1706676632218,-3198.37181468,0.00024778,2]
[313041059,1706676632227,-339.91551764,0.00024778,2]
[313041060,1706676632237,-420.51663594,0.00024779,2]
[313041061,1706676632488,-3338.37650623,0.00024779,2]
[313041062,1706676632515,-169.28986,0.00024795,2]
[313041063,1706676632526,-169.28986,0.00024795,2]
[313041064,1706676632535,-178.52195081,0.00024799,2]
[313041065,1706676632545,-150.0,0.00024899,2]
[313041066,1706676632554,-170.42148652,0.000249,2]
[313041067,1706676632688,-2886.58443646,0.000249,2]
[313041078,1706676638843,-1109.64957702,0.000249,2]
[313041079,1706676638853,-364.7978,0.000249,2]
[313041080,1706676638862,-150.0,0.00027389,2]
[313041081,1706676638871,-155.0,0.0003,2]
[313041082,1706676638880,-598.681,0.00032436,2]
[313041083,1706676638889,-739.262,0.00032436,2]
[313041084,1706676638899,-151.73,0.00034853,2]
[313041085,1706676638908,-1000.0,0.000362,2]
[313041086,1706676638919,-152.49102744,0.00036298,2]
[313041087,1706676638928,-499.99,0.00036298,2]
[313041088,1706676638937,-250.0,0.00036685,2]
[313041089,1706676638946,-152.94,0.000367,3]
[313041090,1706676638956,-152.94,0.000367,3]
[313041091,1706676638965,-152.94,0.000367,3]
[313041092,1706676638974,-152.94,0.000367,3]
[313041093,1706676638984,-152.94,0.000367,3]
[313041094,1706676638994,-152.94,0.000367,3]
[313041095,1706676639003,-152.94,0.000367,3]
[313041096,1706676639012,-152.94,0.000367,3]
[313041097,1706676639023,-152.94,0.000367,3]
[313041098,1706676639032,-152.94,0.000367,3]
[313041099,1706676639042,-152.94,0.000367,3]
[313041100,1706676639052,-152.94,0.000367,3]
[313041101,1706676639061,-152.94,0.000367,3]
[313041102,1706676639070,-167.48,0.00036715,2]
[313041103,1706676639079,-500.0,0.00036717,2]
[313041104,1706676639089,-1294.34437889,0.00036733,2]
[313041105,1706676639098,-167.08,0.00036758,2]
[313041106,1706676639107,-276.72,0.00036774,2]
[313041107,1706676639117,-150.0,0.0003678,2]
[313041109,1706676639126,-1043.8,0.00036802,2]
[313041111,1706676639135,-716.02,0.00036811,2]
[313041112,1706676639145,-250.0,0.00036884,111]
[313041113,1706676639154,-1000.0,0.00036932,2]
[313041114,1706676639164,-670.64701535,0.00037,7]
[313041115,1706676639174,-1294.34437889,0.00037006,2]
[313041116,1706676639183,-169.11,0.0003702,2]
[313041117,1706676639192,-165.04,0.00037039,2]
[313041118,1706676639201,-152.0,0.00037127,3]
[313041119,1706676639211,-1294.34437889,0.00037278,2]
[313041120,1706676639221,-500.0,0.00037596,2]
[313041121,1706676639231,-150.0,0.00037596,2]
[313041123,1706676639240,-979.57704,0.00037596,2]
[313041124,1706676639250,-3415.26325334,0.0003762,2]
[313041126,1706676639262,-420.46133765,0.0003762,2]
[313041128,1706676639274,-1088.53040327,0.0003762,2]
[313041129,1706676639283,-211.0,0.00037644,2]
[313041130,1706676639293,-200.0,0.00037646,5]
[313041131,1706676639303,-800.0,0.00037695,5]
[313041132,1706676639313,-257.66957467,0.00037696,5]
[313041133,1706676639325,-542.33042533,0.00037696,5]
[313041134,1706676639334,-301.52639111,0.00037825,7]
[313041135,1706676639361,-346.49127393,0.00037825,7]
[313041138,1706676640839,-920.77149007,0.00037825,7]
[313041139,1706676641949,-152.49102744,0.00036298,2]
[313041140,1706676641959,-347.49897256,0.00037825,7]
[313041148,1706676643308,-1225.78129649,0.00037825,7]
[313041149,1706676643318,-1294.34437889,0.00037894,2]
[313041150,1706676643327,-29.15834148,0.00037897,4]
[313041151,1706676643339,-127.00538629,0.00037897,4]
[313041152,1706676643348,-2721.8262856,0.00037897,4]
[313041153,1706676643357,-162.87261459,0.00037999,2]
[313041154,1706676643366,-6.84891157,0.00038,2]
[313041155,1706676643411,-2286.95543343,0.00038,2]
[313041156,1706676643422,-633.85,0.00038082,2]
[313041157,1706676643431,-341.25,0.00038082,2]
[313041158,1706676643441,-307.06473815,0.00038082,2]
[313041159,1706676643453,-34.18526185,0.00038082,2]
[313041160,1706676643462,-341.25,0.00038082,2]
[313041161,1706676643472,-124.56473815,0.00038082,2]
[313041162,1706676643593,-228.79526185,0.00038082,2]
[313041163,1706676643602,-1189.62850182,0.00038125,2]
[313041164,1706676643613,-104.71587707,0.00038125,2]
[313041165,1706676643623,-2006.92,0.000382,2]
[313041166,1706676643632,-155.63465272,0.00038207,4]
[313041168,1706676643641,-64.70120337,0.00038207,4]
[313041169,1706676643653,-168.78425365,0.00038207,4]
[313041170,1706676643662,-5871.93274888,0.00038207,2]
[313041177,1706676646432,-332.94186587,0.00037438,2]
[313041178,1706676646441,-12456.69038484,0.00038207,2]
[313041179,1706676646453,-2007.4000002,0.00038207,2]
[313041180,1706676646541,-470.4134324,0.00038207,2]
[313041181,1706676646550,-8984.77044726,0.00038208,4]
[313041182,1706676646562,-4022.04338672,0.00038208,4]
[313041183,1706676646571,-402.77,0.00038219,2]
[313041184,1706676646582,-944.46,0.00038219,2]
[313041185,1706676646591,-403.07,0.00038219,2]
[313041186,1706676646600,-403.07,0.00038219,2]
[313041187,1706676646610,-536.67811642,0.00038219,2]
[313041188,1706676670215,89850.0,0.00023,2]
[313041197,1706677831580,-420.51663594,0.00022766,2]
[313041198,1706677831593,-339.91551764,0.00022767,2]
[313041199,1706677831603,-539.56784642,0.000229,2]
[313041200,1706677831619,-2275.6,0.000229,2]
[313041201,1706677831644,-280.24516117,0.000229,2]
[313041202,1706677831660,-3000.0,0.000229,2]
[313041203,1706677831672,-710.14014629,0.000229,2]
[313041225,1706677838436,-150.60104612,0.000229,2]
[313041226,1706677838445,-8866.05846175,0.00023,2]
[313041227,1706677838492,-429.564132,0.00023,2]
[313041228,1706677838544,-397.2919501,0.00023,2]
[313041229,1706677838555,-1367.27393774,0.00023,2]
[313041230,1706677838598,-42978.444175,0.00023,2]
[313041249,1706677839939,-1003.71879145,0.00023,2]
[313041250,1706677841240,-260.72695755,0.00023,2]
[313041251,1706677841264,-1301.10073228,0.00023,2]
[313041252,1706677841458,-356.99633322,0.00023,2]
[313041260,1706677842553,-429.3413207,0.00023,2]
[313041261,1706677842818,-3130.14142335,0.00023,2]
[313041262,1706677842829,-1560.0,0.00023,2]
[313041263,1706677842842,-937.480368,0.00023,2]
[313041264,1706677842875,-702.24588902,0.00023,2]
[313041265,1706677842886,-619.20898419,0.00023,2]
[313041273,1706677845423,-234.4466,0.000229,2]
[313041275,1706677845433,-1265.5534,0.00023,2]
[313041292,1706677845586,-974.15576218,0.00023,2]
[313041294,1706677845597,-633.709995,0.00023,2]
[313041296,1706677845608,-862.563003,0.00023,2]
[313041298,1706677845620,-1158.10832356,0.00023,2]
[313041300,1706677845642,-785.33542952,0.00023,2]
[313041301,1706677845654,-1906.16216076,0.00023,2]
[313041304,1706677845700,-868.01243335,0.00023,2]
[313041305,1706677845711,-847.6,0.00023,2]
[313041306,1706677845806,-14243.93278261,0.00023,2]
[313041307,1706677845818,-2152.46439114,0.00023,2]
[313041311,1706678174352,150.0,0.00022438,8]
[313041313,1706678236169,150.0,0.00022493,9]
[313041321,1706679031611,-150.0,0.00022576,2]
[313041324,1706679031621,-150.0,0.0002277,2]
[313041326,1706679031631,-15.2812933,0.0002277,2]
[313041328,1706679031644,-134.7187067,0.0002277,2]
[313041329,1706679031653,-150.0,0.0002277,2]
[313041330,1706679031663,-150.0,0.0002277,2]
[313041331,1706679031672,-150.0,0.0002277,2]
[313041332,1706679031682,-248.00993,0.0002277,2]
[313041333,1706679031692,-207.45257449,0.0002279,2]
[313041334,1706679031701,-158.92397413,0.00022799,2]
[313041335,1706679031711,-2200.89481468,0.000228,2]
[313041336,1706679031727,-96.50508532,0.000228,2]
[313041337,1706679031737,-150.0,0.00022889,2]
[313041338,1706679031747,-1296.11007618,0.0002289,2]
[313041339,1706679031759,-7266.00620357,0.0002289,2]
[313041340,1706679031770,-11388.47935013,0.0002289,2]
[313041341,1706679031780,-525.0346855,0.00022899,2]
[313041342,1706679031789,-1000.0,0.000229,2]
[313041343,1706679031799,-217762.5129,0.000229,2]
[313041344,1706679031809,-493.15866522,0.00022987,2]
[313041345,1706679031818,-274.51787822,0.00022999,2]
[313041346,1706679031827,-63162.57082202,0.00022999,2]
[313041347,1706679031837,-6477.58598084,0.00023,2]
[313041348,1706679031859,-350.385,0.00023,2]
[313041349,1706679031875,-549.35079271,0.00023,2]
[313041350,1706679031887,-616.61648566,0.00023,2]
[313041351,1706679031899,-318.3432,0.00023,2]
[313041352,1706679031957,-861.30312776,0.00023,2]
[313041353,1706679031982,-1906.08177036,0.00023,2]
[313041357,1706679037732,-5628.37594026,0.00023,2]
[313041358,1706679037787,-4447.81020263,0.00023,2]
[313041359,1706679037844,-15570.04461585,0.00023,2]
[313041360,1706679037901,-429.64,0.00023,2]
[313041577,1706679040179,-637.26935831,0.00023,2]
[313041584,1706679040235,-373.44875352,0.00023,2]
[313041586,1706679040250,-409.18167142,0.00023,2]
[313041588,1706679040261,-810.13194016,0.00023,2]
[313041593,1706679040295,-998.486475,0.00023,2]
[313041599,1706679040349,-478.22499076,0.00023,2]
[313041668,1706679040977,-4097.45397246,0.00023,2]
[313041689,1706679041249,-1267.80842534,0.00023,2]
[313041916,1706679043135,-1300.1326,0.00023,2]
[313041918,1706679043151,-2451.07015543,0.00023,2]
[313041921,1706679043162,-567.73310033,0.00023,2]
[313041923,1706679043172,-1546.45892073,0.00023,2]
[313041927,1706679043205,-2343.59286115,0.00023,2]
[313041931,1706679043231,-2025.22,0.00023,2]
[313041959,1706679043482,-510.5000003,0.00023,2]
[313041962,1706679043499,-1521.56675804,0.00023,2]
[313042077,1706679045680,-2859.71598182,0.00023,2]
[313042078,1706679045963,-505.85696838,0.00023,2]
[313042079,1706679046009,-647.88662886,0.00023,2]
[313042091,1706679106029,1473.21470558,0.0002239,2]
[313042098,1706680231835,-155.0,0.00022538,2]
[313042099,1706680231844,-178.34907559,0.00022539,2]
[313042100,1706680231854,-19.20965318,0.00022696,2]
[313042101,1706680231942,-1900.0,0.00022696,2]
[313042102,1706680232057,-331.62881422,0.00022696,2]
[313042103,1706680232069,-2071.2725109,0.00022696,2]
[313042123,1706680237826,-326.43956478,0.00022696,2]
[313042125,1706680237835,-457.76594469,0.00022697,2]
[313042126,1706680237894,-1015.44876089,0.00022697,2]
[313042127,1706680237905,-1417.1779,0.000229,2]
[313042128,1706680237916,-1047.5073,0.000229,2]
[313042129,1706680237926,-355.42907193,0.00022999,2]
[313042130,1706680237936,-41789.27045895,0.00023,2]
[313042131,1706680237949,-60489.38488394,0.00023,2]
[313042132,1706680237961,-4411.81803008,0.00023,2]
[313042133,1706680237970,-1473.21470558,0.00023151,2]
[313042134,1706680237979,-178.34907559,0.00027153,2]
[313042135,1706680237989,-2408.0,0.000293,2]
[313042136,1706680237999,-6542.0,0.000293,2]
[313042137,1706680238008,-499.99,0.000293,2]
[313042138,1706680238017,-1787.18818733,0.0002988,2]
[313042139,1706680238027,-155.0,0.0003,2]
[313042140,1706680238037,-816.3142,0.0003,2]
[313042141,1706680238046,-725.96,0.00031767,2]
[313042142,1706680238056,-178.34907559,0.00031768,2]
[313042143,1706680238066,-5119.06763433,0.000328,2]
[313042144,1706680238075,-3460.78,0.000328,2]
[313042145,1706680238085,-151.73,0.00033555,2]
[313042146,1706680238094,-407.79,0.00034384,2]
[313042147,1706680238103,-200.0,0.00035,120]
[313042148,1706680238112,-816.31421,0.00035,2]
[313042149,1706680238122,-169.89,0.00035307,2]
[313042150,1706680238131,-403.07,0.00035342,2]
[313042151,1706680238141,-944.46,0.00035342,2]
[313042152,1706680238150,-320.72,0.00035342,2]
[313042153,1706680238159,-401.57,0.00035342,2]
[313042154,1706680238168,-150.0,0.0003537,2]
[313042155,1706680238177,-1792.19,0.00035435,2]
[313042156,1706680238186,-151.0131,0.00035448,4]
[313042157,1706680238195,-250.0,0.00035499,111]
[313042158,1706680238205,-1694.34235594,0.00035518,2]
[313042159,1706680238215,-200.0,0.00035535,2]
[313042160,1706680238225,-250.0,0.00035568,2]
[313042161,1706680238234,-169.11,0.00035582,2]
[313042162,1706680238244,-167.48,0.00035616,2]
[313042163,1706680238253,-1000.0,0.00035638,2]
[313042164,1706680238263,-1230.1,0.00035641,2]
[313042165,1706680238272,-976.64,0.00035723,2]
[313042166,1706680238281,-417.62,0.00035723,2]
[313042167,1706680238290,-250.0,0.00035729,2]
[313042168,1706680238299,-151.0131,0.00035748,4]
[313042169,1706680238308,-599.99999902,0.00036,37]
[313042170,1706680238318,-1000.0,0.00036,6]
[313042171,1706680238328,-151.0131,0.00036148,4]
[313042172,1706680238337,-1000.0,0.000362,2]
[313042173,1706680238346,-152.49102744,0.00036308,2]
[313042174,1706680238355,-178.34907559,0.00036382,2]
[313042175,1706680238364,-152.95,0.000367,3]
[313042176,1706680238374,-152.95,0.000367,3]
[313042177,1706680238383,-152.95,0.000367,3]
[313042178,1706680238392,-152.95,0.000367,3]
[313042179,1706680238402,-152.95,0.000367,3]
[313042180,1706680238412,-152.95,0.000367,3]
[313042181,1706680238421,-152.95,0.000367,3]
[313042182,1706680238430,-152.95,0.000367,3]
[313042183,1706680238439,-152.95,0.000367,3]
[313042184,1706680238450,-152.95,0.000367,3]
[313042185,1706680238459,-152.95,0.000367,3]
[313042186,1706680238469,-151.0131,0.00036748,4]
[313042187,1706680238479,-169.89,0.00036951,2]
[313042188,1706680238488,-2112.34381832,0.00036999,4]
[313042189,1706680238497,-14728.84513157,0.00036999,4]
[313042190,1706680238510,-422.83764416,0.00036999,4]
[313042191,1706680238519,-670.64701535,0.00037,7]
[313042192,1706680238529,-1018.0,0.00037,7]
[313042193,1706680238537,-4142.1691104,0.00037,2]
[313042194,1706680238644,-4978.00056741,0.00037,2]
[313042195,1706680238676,-627.74580422,0.00037,2]
[313042196,1706680238687,-648.5229323,0.00037,2]
[313042197,1706680238754,-3747.68916735,0.00037,2]
[313042198,1706680238765,-258.61400001,0.00037,2]
[313042199,1706680238788,-574.98736815,0.00037,2]
[313042203,1706680240516,-452.25615153,0.00037,2]
[313042204,1706680240528,-359.45574608,0.00037,2]
[313042205,1706680240581,-251.58,0.00037,2]
[313042206,1706680241228,-535.27628978,0.00037,2]
[313042207,1706680241237,-151.0131,0.00037148,6]
[313042208,1706680241247,-303.05,0.0003726,2]
[313042209,1706680241257,-2154.33781986,0.00037334,3]
[313042210,1706680241268,-7896.99086435,0.00037334,3]
[313042211,1706680241278,-152.0,0.00037392,3]
[313042212,1706680241287,-630.63818155,0.00037438,2]
[313042213,1706680241296,-151.0131,0.00037448,6]
[313042214,1706680241306,-202.58121259,0.000375,2]
[313042215,1706680241315,-151.0131,0.00037748,6]
[313042216,1706680241324,-200.0,0.00037912,5]
[313042217,1706680241333,-588.0073174,0.00037912,5]
[313042218,1706680241345,-211.9926826,0.00037912,5]
[313042219,1706680241354,-200.0,0.00037913,5]
[313042220,1706680241363,-800.0,0.00037913,5]
[313042221,1706680241372,-150.0,0.00038082,2]
[313042222,1706680241381,-280.9073174,0.00038082,2]
[313042223,1706680241397,-59.9626826,0.00038082,2]
[313042225,1706680241407,-852.93,0.00038082,2]
[313042227,1706680241417,-150.0,0.00038082,2]
[313042229,1706680241426,-16.03475358,0.00038082,2]
[313042231,1706680241437,-133.96524642,0.00038082,2]
[313042233,1706680241446,-150.0,0.00038082,2]
[313042235,1706680241456,-150.0,0.00038082,2]
[313042236,1706680241465,-150.0,0.00038082,2]
[313042238,1706680241474,-304.13,0.00038082,2]
[313042239,1706680241483,-151.0131,0.00038148,6]
[313042240,1706680241492,-150.0,0.000382,12]
[313042241,1706680241500,-2010.18,0.000382,2]
[313042242,1706680241510,-150.0,0.000382,12]
[313042243,1706680241519,-500.0,0.00038219,2]
[313042244,1706680241528,-210.0,0.00038219,4]
[313042245,1706680241537,-500.31678763,0.00038222,2]
[313042246,1706680241546,-167.48,0.00038252,2]
[313042247,1706680241555,-500.0,0.000384,2]
[313042248,1706680241565,-151.0131,0.00038448,6]
[313042249,1706680241575,-169.89,0.00038594,2]
[313042250,1706680241584,-393.02274888,0.000386,9]
[313042251,1706680241593,-1414.92842901,0.0003869,10]
[313042252,1706680241615,-886.07055603,0.0003869,10]
[313042253,1706680241625,-692.02789425,0.000387,2]
[313042254,1706680241637,-1074.29,0.000387,2]
[313042255,1706680241649,-322.25706152,0.000387,2]
[313042291,1706680243763,-152.49102744,0.00036308,2]
[313042292,1706680243772,-519.78336017,0.000387,2]
[313042293,1706680243785,-878.49394085,0.000387,2]
[313042294,1706680243805,-701.33067573,0.000387,2]
[313042295,1706680243820,-359.73856219,0.000387,2]
[313042296,1706680243831,-53879.01035237,0.000387,2]
[313042297,1706680243856,-5385.76899327,0.000387,2]
[313042298,1706680243872,-72561.87014817,0.000387,2]
[313042299,1706680243885,-2563.57660279,0.000387,2]
[313042300,1706680243969,-2575.10550869,0.000387,2]
[313042301,1706680243978,-500.0,0.000387,2]
[313042302,1706680243988,-151.0131,0.00038748,6]
[313042303,1706680243998,-1533.99932336,0.0003879,10]
[313042304,1706680244007,-11780.92990613,0.000388,4]
[313042305,1706680244018,-1010.89162983,0.000388,4]
[313042306,1706680244030,-4766.33893962,0.000388,4]
[313042307,1706680244039,-2952.30461434,0.00038879,4]
[313042308,1706680244048,-2763.55707926,0.0003888,2]
[313042311,1706680245962,-626.86484445,0.0003888,2]
[313042312,1706680246228,-328.8000002,0.0003888,2]
[313042314,1706680267683,150.0,0.00022491,2]
[313042342,1706681432009,-151.12,0.00022865,2]
[313042344,1706681432018,-151.47,0.0002287,2]
[313042346,1706681432029,-137.91048215,0.00022875,2]
[313042347,1706681432041,-14.63951785,0.00022875,2]
[313042348,1706681432050,-150.14,0.00022878,2]
[313042349,1706681432060,-99.77048215,0.00022883,2]
[313042350,1706681432077,-50.65951785,0.00022883,2]
[313042351,1706681432086,-152.6,0.00022888,2]
[313042352,1706681432095,-150.81,0.0002289,2]
[313042353,1706681432105,-151.59,0.00022895,2]
[313042354,1706681432114,-4774.3556,0.000229,2]
[313042355,1706681432123,-430.30953945,0.000229,2]
[313042356,1706681432132,-16990.6753427,0.00023,2]
[313042357,1706681432147,-2692.06977532,0.00023,2]
[313042358,1706681432158,-2636.43472835,0.00023,2]
[313042359,1706681432183,-1521.04990684,0.00023,2]
[313042390,1706681437995,-523.73272136,0.00023,2]
[313042393,1706681438115,-2086.42365342,0.00023,2]
[313042394,1706681438127,-961.40654544,0.00023,2]
[313042395,1706681438172,-3923.4348673,0.00023,2]
[313042396,1706681438228,-104528.55242646,0.00023,2]
[313042397,1706681438336,-831.58999269,0.00023,2]
[313042619,1706681440543,-668.16681472,0.00023,2]
[313042626,1706681440602,-355.12996767,0.00023,2]
[313042628,1706681440613,-328.17755101,0.00023,2]
[313042631,1706681440624,-763.2575711,0.00023,2]
[313042633,1706681440636,-2998.58380616,0.00023,2]
[313042637,1706681440663,-1313.70377315,0.00023,2]
[313042639,1706681440675,-360.21,0.00023,2]
[313042645,1706681440719,-19050.88885628,0.00023,2]
[313042707,1706681441357,-2681.98083323,0.00023,2]
[313042710,1706681441367,-856.53874824,0.00023,2]
[313042712,1706681441379,-286.83677164,0.00023,2]
[313042714,1706681441390,-1466.08782232,0.00023,2]
[313042718,1706681441415,-4905.77646188,0.00023,2]
[313042720,1706681441426,-299.1390762,0.00023,2]
[313042726,1706681441466,-309.04679903,0.00023,2]
[313042728,1706681441478,-2014.53425837,0.00023,2]
[313042730,1706681441489,-469.50000035,0.00023,2]
[313042908,1706681443118,-330.23400921,0.00023,2]
[313042915,1706681443177,-667.59,0.00023,2]
[313042923,1706681443240,-1161.22070858,0.00023,2]
[313042935,1706681443340,-901.57787144,0.00023,2]
[313042937,1706681443352,-789.96808467,0.00023,2]
[313042939,1706681443365,-4347.98,0.00023,2]
[313043211,1706681446115,-4613.65668647,0.00023,2]
[313043213,1706681446126,-3466.69759647,0.00023,2]
[313043216,1706681446226,-1102.74167354,0.00023,2]
[313043217,1706681446237,-1249.35297561,0.00023,2]
[313043218,1706681446249,-1089.06822807,0.00023,2]
[313043219,1706681446261,-18738.24877323,0.00023,2]
[313043220,1706681446274,-567.39062608,0.00023,2]
[313043221,1706681446297,-3700.52867238,0.00023,2]
[313043222,1706681446308,-4000.32648503,0.00023,2]
[313043223,1706681446320,-2061.14271177,0.00023,2]
[313043271,1706682250100,3157.18457817,0.00021848,2]
[313043272,1706682266841,829.69361488,0.00022078,2]
[313043273,1706682266865,2368.6781998,0.00022078,2]
[313043274,1706682435412,-500.0,0.00022755,2]
[313043275,1706682435435,-2151.72993286,0.00022756,2]
[313043276,1706682435457,-167.23997223,0.00022771,2]
[313043277,1706682435478,-2669.27363928,0.00022882,2]
[313043278,1706682435497,-152.42,0.00022889,2]
[313043279,1706682435518,-151.94,0.00022895,2]
[313043280,1706682435538,-150.0,0.00022899,2]
[313043281,1706682435559,-150.0,0.00022899,2]
[313043282,1706682435579,-4083.81052209,0.000229,2]
[313043292,1706682634335,-500.0,0.00022898,2]
[313043293,1706682634344,-526.56184905,0.00022899,2]
[313043294,1706682634354,-2245.79879483,0.000229,2]
[313043295,1706682634377,-366.91487999,0.000229,2]
[313043296,1706682634389,-586.89099606,0.000229,2]
[313043297,1706682634400,-1012.23348766,0.000229,2]
[313043298,1706682634429,-310.0,0.000229,2]
[313043299,1706682634441,-10519.42651032,0.000229,2]
[313043300,1706682634465,-671.04925394,0.000229,2]
[313043301,1706682634477,-643.36390765,0.000229,2]
[313043302,1706682634488,-5004.39984746,0.000229,2]
[313043303,1706682634498,-150.11,0.00022995,2]
[313043304,1706682634507,-704.47972287,0.00022999,2]
[313043305,1706682634516,-74289.15478695,0.00023,2]
[313043306,1706682634525,-836.60735281,0.00023174,2]
[313043307,1706682634535,-9988.81,0.000291,2]
[313043308,1706682634544,-499.99,0.000291,2]
[313043309,1706682634553,-2288.0,0.000293,2]
[313043310,1706682634563,-5887.0,0.000293,2]
[313043311,1706682634572,-5667.92,0.000293,2]
[313043313,1706682634581,-155.0,0.0003,2]
[313043315,1706682634590,-500.0,0.0003,2]
[313043317,1706682634599,-544.20947,0.0003,2]
[313043319,1706682634608,-544.20947,0.0003,2]
[313043321,1706682634618,-619.88,0.0003,2]
[313043323,1706682634627,-2023.71,0.0003,2]
[313043326,1706682634636,-544.20947,0.0003127,2]
[313043329,1706682634645,-688.71,0.0003127,2]
[313043331,1706682634655,-167.23997221,0.00032295,2]
[313043333,1706682634664,-151.73,0.00032553,2]
[313043335,1706682634673,-207.985833,0.000328,2]
[313043337,1706682634683,-544.20947,0.0003377,2]
[313043338,1706682634692,-2239.89,0.00034379,2]
[313043339,1706682634701,-1025.08,0.00034392,2]
[313043340,1706682634710,-376.82,0.0003447,2]
[313043341,1706682634719,-750.0,0.00034471,2]
[313043342,1706682634728,-23900.0,0.00034472,2]
[313043343,1706682634737,-211.0,0.00034472,2]
[313043344,1706682634747,-2705.0,0.00034637,2]
[313043345,1706682634756,-1852.42,0.00034651,2]
[313043346,1706682634765,-482.56,0.00034661,2]
[313043347,1706682634775,-150.0,0.00034745,2]
[313043348,1706682634784,-1563.49,0.00034809,2]
[313043349,1706682634793,-365.7,0.0003481,2]
[313043350,1706682634802,-250.0,0.00034823,2]
[313043351,1706682634810,-250.0,0.00034824,111]
[313043352,1706682634819,-508.46,0.00034838,2]
[313043353,1706682634828,-1000.0,0.00034852,2]
[313043354,1706682634837,-274.77,0.00034878,2]
[313043355,1706682634847,-1042.48,0.00034885,2]
[313043356,1706682634856,-2000.0,0.00034896,2]
[313043357,1706682634865,-5770.13,0.00034933,2]
[313043358,1706682634874,-200.0,0.00034941,2]
[313043359,1706682634883,-150.77,0.00035067,2]
[313043360,1706682634893,-1320.19,0.00035101,2]
[313043361,1706682634902,-167.94,0.00035113,2]
[313043362,1706682634912,-151.0131,0.00035148,4]
[313043363,1706682634922,-1347.02,0.00035164,2]
[313043364,1706682634931,-1136.92,0.00035316,2]
[313043365,1706682634941,-150.77,0.00035371,2]
[313043366,1706682634950,-151.0131,0.00035448,4]
[313043367,1706682634960,-167.48,0.00035616,2]
[313043368,1706682634969,-150.77,0.00035676,2]
[313043369,1706682634979,-151.0131,0.00035748,4]
[313043370,1706682634988,-150.13,0.00035871,5]
[313043371,1706682634997,-171.20091404,0.00035876,5]
[313043372,1706682635006,-150.77,0.0003598,2]
[313043373,1706682635016,-376.82,0.00036114,2]
[313043374,1706682635025,-150.91,0.00036143,5]
[313043375,1706682635034,-151.0131,0.00036148,6]
[313043376,1706682635044,-152.84,0.00036157,5]
[313043377,1706682635053,-152.17,0.00036177,5]
[313043378,1706682635063,-1000.0,0.000362,2]
[313043379,1706682635073,-151.12,0.00036216,5]
[313043380,1706682635082,-544.20947,0.0003627,2]